fUST/lending_fUST_20260404
["ID","MTS","AMOUNT","RATE_DAILY","PERIOD"]
[419563915,1775235044242,-500.0,0.00024999,2]
[419563917,1775235044251,-500.0,0.00024999,2]
[419563919,1775235044261,-500.0,0.00024999,2]
[419563921,1775235044270,-500.0,0.00024999,2]
[419563923,1775235044280,-500.0,0.00024999,2]
[419563925,1775235044289,-500.0,0.00024999,2]
[419563927,1775235044299,-500.0,0.00024999,2]
[419563929,1775235044308,-500.0,0.00024999,2]
[419563931,1775235044317,-508.28466794,0.00024999,2]
[419563933,1775235044327,-308.63883008,0.00024999,2]
[419563935,1775235044336,-500.0,0.00024999,2]
[419563937,1775235044345,-500.0,0.00024999,2]
[419563939,1775235044355,-500.0,0.00024999,2]
[419563941,1775235044364,-500.0,0.00024999,2]
[419563943,1775235044374,-569.4571903,0.00024999,2]
[419563945,1775235044383,-500.0,0.00024999,2]
[419563947,1775235044392,-500.0,0.00024999,2]
[419563949,1775235044402,-304.02443904,0.00024999,2]
[419563951,1775235044412,-93736.62515837,0.00025,15]
[419563953,1775235044421,-6786.92715407,0.00025,2]
[419563955,1775235044431,-500.0,0.00025,2]
[419563957,1775235044441,-300.0,0.00025,10]
[419563959,1775235044451,-15424.43687053,0.00025,7]
[419563961,1775235044461,-270.83333333,0.00025,7]
[419563963,1775235044471,-191.55,0.00025005,7]
[419563965,1775235044481,-864.40945901,0.0002501,2]
[419563968,1775235044490,-600.0,0.0002509,10]
[419563970,1775235044500,-864.40945901,0.00025122,2]
[419563972,1775235044509,-160.0,0.00025122,3]
[419563974,1775235044518,-160.0,0.00025122,5]
[419563976,1775235044527,-1106.67,0.00025201,2]
[419563978,1775235044537,-1240.0,0.00025205,5]
[419563980,1775235044547,-1507.35716174,0.00025211,105]
[419563982,1775235044557,-152.0,0.00025229,2]
[419563984,1775235044566,-864.40945901,0.00025233,2]
[419563986,1775235044575,-235.8,0.00025235,7]
[419563988,1775235044585,-306.02,0.00025252,7]
[419563990,1775235044595,-151.0,0.000253,19]
[419563992,1775235044604,-4562.41421529,0.00025344,2]
[419563994,1775235044614,-864.40945901,0.00025344,2]
[419563996,1775235044623,-160.0,0.00025382,14]
[419563998,1775235044634,-2421.659761,0.00025382,14]
[419564000,1775235044644,-4683.319523,0.00025382,14]
[419564002,1775235044654,-1167.62379529,0.00025393,2]
[419564004,1775235044664,-3929.68559192,0.000254,7]
[419564006,1775235044674,-151.0,0.000254,12]
[419564008,1775235044685,-151.0,0.000254,19]
[419564010,1775235044694,-999.0,0.00025443,2]
[419564012,1775235044704,-204.59,0.00025443,7]
[419564014,1775235044713,-220535.7570436,0.00025444,2]
[419564017,1775235044726,-38736.95993555,0.00025444,2]
[419564187,1775235046557,-3829.67194729,0.00025444,2]
[419564189,1775235046570,-384824.46572655,0.00025444,2]
[419564294,1775235047625,-85469.99379277,0.00025444,2]
[419570631,1775235117110,6288.114194,0.000277,120]
[419572811,1775235139701,8048.259873,0.000277,120]
[419577515,1775236204644,7252.84217745,0.00034762,120]
[419577541,1775236232472,-537.252,0.00012142,2]
[419577564,1775236238741,-1883.92031444,0.00012142,2]
[419577566,1775236238753,-1698.07768556,0.00012142,2]
[419577568,1775236238763,-2438.09251401,0.00012265,2]
[419577688,1775236241378,-512.77059311,0.00012265,2]
[419577884,1775236244013,-2049.13689288,0.00012265,2]
[419577885,1775236244023,-173.0,0.00012388,2]
[419577886,1775236244033,-1000.0,0.00013699,2]
[419577887,1775236244043,-1909.998488,0.00015,2]
[419577888,1775236244053,-248.50492373,0.00019662,2]
[419577889,1775236244063,-312.29163151,0.00021999,2]
[419577890,1775236244073,-412.81710733,0.00021999,2]
[419577891,1775236244082,-500.0,0.00021999,2]
[419577892,1775236244092,-500.0,0.00021999,2]
[419577894,1775236244101,-500.0,0.00021999,2]
[419577896,1775236244111,-500.0,0.00021999,2]
[419577898,1775236244120,-306.87715157,0.00021999,2]
[419577900,1775236244130,-500.0,0.00021999,2]
[419577902,1775236244140,-500.0,0.00021999,2]
[419577904,1775236244149,-500.0,0.00021999,2]
[419577906,1775236244159,-494.873892,0.00021999,2]
[419577908,1775236244169,-158.94628366,0.00022,2]
[419577910,1775236244178,-158.0,0.00022,2]
[419577911,1775236244188,-133579.57732794,0.00022,2]
[419577914,1775236244223,-8949.51266947,0.00022,2]
[419577918,1775236244235,-920.34923436,0.00022,2]
[419577922,1775236244264,159.58632481,0.00034762,120]
[419577931,1775236244482,159.58632481,0.00034762,120]
[419577953,1775236246749,-2694.14237799,0.00022,2]
[419577956,1775236246761,-345544.03611293,0.00022,2]
[419577982,1775236247012,-9324.2403483,0.00022,2]
[419582246,1775237438809,-5000.0,0.00012389,2]
[419582248,1775237438819,-5000.0,0.00012514,2]
[419582250,1775237438829,-300.0,0.00013694,2]
[419582252,1775237438839,-1000.0,0.00013699,2]
[419582254,1775237438849,-305.41374736,0.00018848,2]
[419582256,1775237438859,-171.44090627,0.0001984,2]
[419582258,1775237438869,-12526.638695,0.00021499,2]
[419582260,1775237438879,-426.16305732,0.00021873,2]
[419582262,1775237438889,-426.16305729,0.0002188,2]
[419582264,1775237438899,-426.16305729,0.00021887,2]
[419582266,1775237438908,-426.16305729,0.00021893,2]
[419582268,1775237438918,-426.16305729,0.000219,2]
[419582270,1775237438928,-140000.0,0.00021965,3]
[419582272,1775237438937,-346.57714889,0.00021969,2]
[419582274,1775237438947,-638.97197513,0.00021969,2]
[419582276,1775237438957,-500.0,0.00021969,2]
[419582278,1775237438966,-618.51328967,0.00021969,2]
[419582280,1775237438975,-500.0,0.00021969,2]
[419582282,1775237438985,-500.0,0.00021969,2]
[419582284,1775237438995,-500.0,0.00021969,2]
[419582286,1775237439005,-500.0,0.00021969,2]
[419582288,1775237439014,-500.0,0.00021969,2]
[419582290,1775237439023,-500.0,0.00021969,2]
[419582292,1775237439032,-447.68701755,0.00021969,2]
[419582294,1775237439042,-500.0,0.00021969,2]
[419582296,1775237439051,-500.0,0.00021969,2]
[419582298,1775237439060,-500.0,0.00021969,2]
[419582300,1775237439069,-500.0,0.00021969,2]
[419582302,1775237439078,-500.0,0.00021969,2]
[419582304,1775237439087,-500.0,0.00021969,2]
[419582306,1775237439097,-500.0,0.00021969,2]
[419582308,1775237439106,-500.0,0.00021969,2]
[419582310,1775237439115,-500.0,0.00021969,2]
[419582312,1775237439125,-500.0,0.00021969,2]
[419582314,1775237439134,-500.0,0.00021969,2]
[419582316,1775237439144,-500.0,0.00021969,2]
[419582318,1775237439154,-500.0,0.00021969,2]
[419582320,1775237439163,-500.0,0.00021969,2]
[419582322,1775237439173,-500.0,0.00021969,2]
[419582324,1775237439182,-500.0,0.00021969,2]
[419582326,1775237439192,-500.0,0.00021969,2]
[419582328,1775237439201,-357.75518476,0.00021969,2]
[419582330,1775237439211,-500.0,0.00021973,2]
[419582332,1775237439220,-500.0,0.00021973,2]
[419582334,1775237439229,-200.0,0.00021999,2]
[419582336,1775237439238,-40142.961297,0.00022,2]
[419582547,1775237441456,-4199.509494,0.00022,2]
[419582550,1775237441468,-9282.5901475,0.00022,2]
[419582555,1775237441511,-2433.1418704,0.00022,2]
[419582832,1775237444313,-9117.5359101,0.00022,2]
[419582839,1775237444368,-2158.83393139,0.00022,2]
[419583013,1775237446132,1380.65862297,0.00034751,120]
[419583100,1775237447121,-21414.55398311,0.00022,2]
[419583102,1775237447131,-295.28477903,0.00022,2]
[419583106,1775237447176,-1087.87735128,0.00022,2]
[419583107,1775237447187,-30514.05177807,0.00022,2]
[419592098,1775237542974,2054.761,9.01e-06,120]
[419593982,1775237634632,163.54398546,0.00034751,120]
[419594010,1775238631788,-1000.0,0.00013699,2]
[419594014,1775238631810,-342.95125697,0.00018377,2]
[419594016,1775238631821,-307.83187744,0.00019344,2]
[419594018,1775238631831,-175.974761,0.0002092,2]
[419594020,1775238631840,-2570.7752538,0.00021003,2]
[419594022,1775238631850,-1000.0,0.00021163,2]
[419594024,1775238631860,-1200.0,0.00021899,2]
[419594026,1775238631869,-2860.05993411,0.000219,2]
[419594028,1775238631879,-300.0,0.00021956,2]
[419594030,1775238631889,-1538.9679455,0.00021958,2]
[419594032,1775238631899,-500.0,0.00021999,2]
[419594034,1775238631909,-500.0,0.00021999,2]
[419594036,1775238631919,-476.57946582,0.00021999,2]
[419594037,1775238631928,-500.0,0.00021999,2]
[419594038,1775238631938,-157.54647677,0.00021999,2]
[419594039,1775238631948,-500.0,0.00021999,2]
[419594040,1775238631958,-500.0,0.00021999,2]
[419594041,1775238631968,-500.0,0.00021999,2]
[419594042,1775238631978,-500.0,0.00021999,2]
[419594044,1775238631988,-500.0,0.00021999,2]
[419594046,1775238631997,-500.0,0.00021999,2]
[419594048,1775238632007,-500.0,0.00021999,2]
[419594050,1775238632017,-500.0,0.00021999,2]
[419594051,1775238632026,-500.0,0.00021999,2]
[419594053,1775238632036,-500.0,0.00021999,2]
[419594054,1775238632046,-434.07198089,0.00021999,2]
[419594055,1775238632056,-447.28038259,0.00021999,2]
[419594056,1775238632066,-500.0,0.00021999,2]
[419594057,1775238632076,-186.55103695,0.00021999,2]
[419594058,1775238632086,-500.0,0.00021999,2]
[419594059,1775238632095,-500.0,0.00021999,2]
[419594060,1775238632105,-500.0,0.00021999,2]
[419594061,1775238632115,-500.0,0.00021999,2]
[419594062,1775238632125,-500.0,0.00021999,2]
[419594063,1775238632134,-397.14920026,0.00021999,2]
[419594064,1775238632144,-46443.0881501,0.00022,2]
[419594065,1775238632156,-7700.88460662,0.00022,2]
[419594066,1775238632167,-665.05,0.00022,2]
[419594113,1775238638087,-57705.69857529,0.00022,2]
[419594115,1775238638097,-217.0,0.00022,2]
[419594117,1775238638106,-302.0,0.00022,2]
[419594119,1775238638115,-1179.69896458,0.00022275,22]
[419594121,1775238638125,-12526.638695,0.00022404,2]
[419594123,1775238638134,-3235.06568029,0.00022433,2]
[419594125,1775238638145,-5059.64098061,0.00022433,2]
[419594127,1775238638154,-152.1957848,0.00022435,2]
[419594129,1775238638163,-324.9815827,0.0002244,2]
[419594131,1775238638172,-356.1713762,0.0002244,2]
[419594133,1775238638181,-289.86494217,0.00023,3]
[419594135,1775238638191,-217.0,0.00023,2]
[419594137,1775238638200,-302.0,0.00023,2]
[419594139,1775238638209,-200.0,0.00023,2]
[419594141,1775238638219,-200.0,0.00023,2]
[419594143,1775238638228,-500.0,0.00023,3]
[419594145,1775238638238,-157.0,0.00023,7]
[419594147,1775238638247,-2860.05993404,0.00023043,2]
[419594149,1775238638258,-299.07,0.000231,7]
[419594151,1775238638267,-324.9815827,0.00023258,2]
[419594153,1775238638276,-500.0,0.00023274,3]
[419594155,1775238638285,-12526.638695,0.00023309,2]
[419594157,1775238638294,-212.60503267,0.00023749,2]
[419594159,1775238638303,-599.296,0.00023767,2]
[419594160,1775238638313,-1403.0,0.00023767,2]
[419594162,1775238638322,-184.0,0.00023767,2]
[419594164,1775238638331,-439.0,0.00023767,2]
[419594167,1775238638341,-151.07856085,0.00023793,5]
[419594169,1775238638350,-217.0,0.00024,2]
[419594171,1775238638360,-302.0,0.00024,2]
[419594173,1775238638369,-599.60298507,0.00024129,2]
[419594175,1775238638378,-621.78829552,0.00024184,2]
[419594177,1775238638387,-2543.76861674,0.00024186,2]
[419594607,1775238643091,-316.2913173,0.00024186,2]
[419594609,1775238643102,-12526.638695,0.00024213,2]
[419594611,1775238643112,-644.79446246,0.00024239,2]
[419594613,1775238643122,-668.65185757,0.00024294,2]
[419594615,1775238643131,-693.3919763,0.00024349,2]
[419594617,1775238643141,-719.04747942,0.00024404,2]
[419594618,1775238643151,-745.65223616,0.00024459,2]
[419594620,1775238643161,-773.2413689,0.00024514,2]
[419594622,1775238643171,-375.95997318,0.00024568,2]
[419594624,1775238643182,-801.85129955,0.00024569,2]
[419594626,1775238643192,-831.51979763,0.00024624,2]
[419594628,1775238643202,-1240.0,0.00024658,5]
[419594630,1775238643212,-212.2068763,0.00024793,5]
[419594632,1775238643222,-324.9815827,0.00024899,2]
[419594634,1775238643232,-178.442,0.000249,8]
[419594636,1775238643241,-1240.0,0.00024932,5]
[419594638,1775238643252,-19487.17326286,0.00025,6]
[419594640,1775238643262,-217.0,0.00025,2]
[419594643,1775238643272,-302.0,0.00025,2]
[419594644,1775238643282,-12526.638695,0.00025118,2]
[419594646,1775238643292,-270.83333333,0.000252,3]
[419594648,1775238643301,-1119.38660589,0.00025205,5]
[419594651,1775238643313,-120.61339411,0.00025205,5]
[419594653,1775238643322,-152.0,0.00025229,2]
[419594655,1775238643332,-2860.05993404,0.00025329,2]
[419594657,1775238643341,-491.24184756,0.00025344,2]
[419594965,1775238646391,-3614.93094621,0.00025344,2]
[419594967,1775238646401,-4411.90637672,0.000254,2]
[419594969,1775238646412,-1082.59443861,0.000254,2]
[419599820,1775238697438,9050.502869,0.00028185,120]
[419600122,1775238700504,2307.288171,0.00028185,120]
[419602692,1775238788138,17405.589753,0.00027636,120]
[419602693,1775238793078,4437.601902,0.00027636,120]
[419602694,1775238951035,1022.7,0.000325,120]
[419602708,1775239808998,1115.34645571,0.00034747,120]
[419602711,1775239832046,-580.08449639,0.0001,2]
[419602712,1775239832058,-1000.0,0.00013699,2]
[419602713,1775239832070,-755.0,0.000219,2]
[419602714,1775239832082,-155.0,0.00022,2]
[419602715,1775239832093,-283.0,0.00022,2]
[419602716,1775239832104,-29.91324464,0.00022,2]
[419602717,1775239832151,-123.08675536,0.00022,2]
[419602718,1775239832162,-1612.78943637,0.00022,2]
[419602769,1775239838406,-14039.27441913,0.00022,2]
[419602770,1775239838419,-4023.25304595,0.00022,2]
[419602771,1775239838429,-195.0,0.00022,2]
[419602772,1775239838440,-818.08730472,0.00022274,22]
[419602773,1775239838451,-283.0,0.00023,2]
[419602774,1775239838465,-161.0,0.00023,2]
[419602775,1775239838476,-195.0,0.00023,2]
[419602776,1775239838489,-270.83333333,0.00023844,2]
[419602777,1775239838499,-283.0,0.00024,2]
[419602778,1775239838510,-195.0,0.00024,2]
[419602779,1775239838521,-163.0,0.00024078,3]
[419602780,1775239838531,-196.2713615,0.00024078,2]
[419602781,1775239838542,-300.0,0.00024106,2]
[419602782,1775239838553,-300.0,0.00024106,2]
[419602783,1775239838564,-300.0,0.00024106,2]
[419602784,1775239838575,-2203.0,0.00024107,2]
[419602785,1775239838587,-599.60298507,0.00024165,2]
[419602786,1775239838599,-251.14565075,0.0002422,2]
[419602787,1775239838610,-229.81459053,0.00024504,2]
[419602788,1775239838621,-1538.9679454,0.00024505,2]
[419602789,1775239838633,-415.9050002,0.00024505,2]
[419602790,1775239838648,-1240.0,0.00024658,5]
[419602791,1775239838658,-500.0,0.00024899,2]
[419602792,1775239838669,-274.65885972,0.00024899,2]
[419602793,1775239838679,-500.0,0.00024899,2]
[419602794,1775239838690,-500.0,0.00024899,2]
[419602795,1775239838700,-500.0,0.00024899,2]
[419602796,1775239838711,-500.0,0.00024899,2]
[419602797,1775239838722,-500.0,0.00024899,2]
[419602798,1775239838732,-500.0,0.00024899,2]
[419602799,1775239838743,-500.0,0.00024899,2]
[419602800,1775239838754,-500.0,0.00024899,2]
[419602801,1775239838765,-500.0,0.00024899,2]
[419602802,1775239838775,-500.0,0.00024899,2]
[419602803,1775239838786,-500.0,0.00024899,2]
[419602804,1775239838796,-500.0,0.00024899,2]
[419602805,1775239838946,-500.0,0.00024899,2]
[419602806,1775239838958,-253.54640921,0.00024899,2]
[419602807,1775239838967,-500.0,0.00024899,2]
[419602808,1775239838977,-500.0,0.00024899,2]
[419602809,1775239838988,-500.0,0.00024899,2]
[419602810,1775239838998,-500.0,0.00024899,2]
[419602811,1775239839007,-500.0,0.00024899,2]
[419602812,1775239839017,-500.0,0.00024899,2]
[419602813,1775239839027,-278.00444018,0.00024899,2]
[419602814,1775239839037,-500.0,0.00024899,2]
[419602815,1775239839047,-313.09626782,0.00024899,2]
[419602816,1775239839056,-383.60562608,0.00024899,2]
[419602817,1775239839066,-500.0,0.00024899,2]
[419602818,1775239839076,-57676.44212124,0.000249,2]
[419602819,1775239839086,-97693.90816352,0.000249,2]
[419602820,1775239839099,-4373.23191218,0.000249,2]
[419602921,1775239841131,-1119.34001489,0.000249,2]
[419602941,1775239843394,-1650.95049077,0.000249,2]
[419602942,1775239843606,-11879.70265911,0.000249,2]
[419602943,1775239843660,-2943.40244164,0.000249,2]
[419602944,1775239843673,-3928.60947472,0.000249,2]
[419602945,1775239843684,-388.59522378,0.000249,2]
[419602954,1775239846557,-15511.11225293,0.000249,2]
[419602955,1775239849971,1022.7,0.000325,120]
[419602956,1775239863598,2319.428474,0.00027636,120]
[419602957,1775239866523,7397.339291,0.00027636,120]
[419602958,1775239888284,1011.0,0.0003287,120]
[419602959,1775239956475,9813.963055,0.00027636,120]
[419602960,1775239956713,2125.299835,0.00027636,120]
[419602968,1775240047066,2277.284764,0.0002744,120]
[419602969,1775240047425,8777.098979,0.0002744,120]
[419602972,1775240645857,500.0,0.00034739,120]
[419602973,1775240749585,1022.7,0.000325,120]
[419603014,1775241032153,-719.30328136,0.0001,2]
[419603016,1775241032162,-560.0,0.0001,2]
[419603018,1775241032172,-156.0,0.00013699,2]
[419603020,1775241032182,-1000.0,0.00013699,2]
[419603022,1775241032192,-152.0,0.00022,2]
[419603024,1775241032202,-153.0,0.00022,2]
[419603026,1775241032211,-185.0,0.00022,2]
[419603028,1775241032220,-280.0,0.00022,2]
[419603030,1775241032230,-161.0,0.00023,2]
[419603032,1775241032240,-185.0,0.00023,2]
[419603034,1775241032250,-280.0,0.00023,2]
[419603036,1775241032259,-270.83333333,0.00023631,2]
[419603037,1775241032268,-185.0,0.00024,2]
[419603039,1775241032278,-280.0,0.00024,2]
[419603041,1775241032287,-162.0,0.0002404,3]
[419603043,1775241032296,-2203.0,0.00024397,2]
[419603044,1775241032305,-184.0,0.00024397,2]
[419603046,1775241032315,-423.15836594,0.000245,2]
[419603048,1775241032330,-4240.55941701,0.000245,2]
[419603049,1775241032341,-62003.40178178,0.000245,2]
[419603051,1775241032353,-369.669591,0.000245,2]
[419603072,1775241038483,-46588.51305982,0.000245,2]
[419603073,1775241038495,-1785.00951315,0.000245,2]
[419603074,1775241038507,-5199.95634752,0.000245,2]
[419603075,1775241038518,-620023.94076502,0.000245,2]
[419603076,1775241038529,-51579.17373463,0.000245,2]
[419603077,1775241038545,-1756.27966031,0.000245,2]
[419603341,1775241041213,-1227.57323168,0.000245,2]
[419603348,1775241041273,-3687.01289079,0.000245,2]
[419603350,1775241041284,-1696.26169907,0.000245,2]
[419603355,1775241041331,-9368.75390134,0.000245,2]
[419603357,1775241041342,-11515.60000023,0.000245,2]
[419603590,1775241043693,-49608.31370158,0.000245,2]
[419603597,1775241043753,-1984.168497,0.000245,2]
[419603599,1775241043765,-1164.28486146,0.000245,2]
[419603601,1775241043777,-48118.79836912,0.000245,2]
[419603603,1775241043788,-1609.90859807,0.000245,2]
[419603605,1775241043800,-1439.55038988,0.000245,2]
[419603607,1775241043812,-911.91340463,0.000245,2]
[419603864,1775241046665,-313488.35273032,0.000245,2]
[419603866,1775241046675,-123228.89318524,0.000246,2]
[419603868,1775241046687,-22970.49126474,0.000246,2]
[419603873,1775241046723,-3415.40808231,0.000246,2]
[419603891,1775241046890,-40324.1037569,0.000246,2]
[419603893,1775241046901,-46276.46429813,0.000246,2]
[419603895,1775241046913,-3438.22961107,0.000246,2]
[419603900,1775241046948,-54436.30116687,0.000246,2]
[419615659,1775241426853,1000.0,0.00034782,120]
[419615696,1775242232447,-344.44000162,0.00013699,2]
[419615699,1775242232459,-655.55999838,0.00013699,2]
[419615701,1775242232469,-152.0,0.00022,2]
[419615703,1775242232479,-158.0,0.00022,2]
[419615705,1775242232489,-166.0,0.00022,2]
[419615706,1775242232499,-255.0,0.00022,2]
[419615708,1775242232509,-166.0,0.00023,2]
[419615709,1775242232519,-255.0,0.00023,2]
[419615710,1775242232529,-1000.0,0.00023522,30]
[419615711,1775242232539,-3467.6440769,0.00023522,2]
[419615712,1775242232552,-1609.9046858,0.00023522,2]
[419615713,1775242232561,-270.83333333,0.0002382,2]
[419615714,1775242232570,-8.40419277,0.00024,2]
[419615715,1775242232582,-157.59580723,0.00024,2]
[419615716,1775242232592,-222.32234987,0.00024,2]
[419615778,1775242238758,-32.67765013,0.00024,2]
[419615780,1775242238767,-196.2850388,0.00024074,2]
[419615782,1775242238777,-1000.0,0.000242,2]
[419615784,1775242238786,-1000.0,0.000242,2]
[419615786,1775242238795,-1000.0,0.000242,2]
[419615788,1775242238805,-1000.0,0.000243,2]
[419615790,1775242238815,-1000.0,0.000243,2]
[419615792,1775242238824,-156.20769032,0.00024326,2]
[419615794,1775242238833,-216.70027108,0.00024326,2]
[419615796,1775242238844,-502.01550327,0.00024373,2]
[419615798,1775242238853,-500.07150662,0.00024373,2]
[419615800,1775242238862,-500.0,0.00024373,2]
[419615802,1775242238872,-513.81632601,0.00024373,2]
[419615804,1775242238881,-187.27136308,0.00024373,2]
[419615806,1775242238891,-500.0,0.00024373,2]
[419615808,1775242238902,-501.01027068,0.00024373,2]
[419615810,1775242238911,-409.56029537,0.00024373,2]
[419615812,1775242238921,-500.0,0.00024373,2]
[419615815,1775242238930,-500.0,0.00024373,2]
[419615817,1775242238939,-289.03575981,0.00024373,2]
[419615819,1775242238949,-1969.98818706,0.00024373,2]
[419615821,1775242238959,-500.0,0.00024399,2]
[419615823,1775242238968,-219.16738747,0.00024399,2]
[419615825,1775242238977,-575.39264878,0.00024399,2]
[419615827,1775242238986,-500.0,0.00024399,2]
[419615829,1775242238995,-412.77951759,0.00024399,2]
[419615831,1775242239005,-500.0,0.00024399,2]
[419615833,1775242239014,-500.0,0.00024399,2]
[419615834,1775242239023,-500.0,0.00024399,2]
[419615836,1775242239033,-500.0,0.00024399,2]
[419615837,1775242239042,-500.0,0.00024399,2]
[419615840,1775242239053,-500.0,0.00024399,2]
[419615841,1775242239063,-500.0,0.00024399,2]
[419615843,1775242239074,-500.0,0.00024399,2]
[419615845,1775242239083,-500.0,0.00024399,2]
[419615847,1775242239093,-500.0,0.00024399,2]
[419615849,1775242239102,-500.0,0.00024399,2]
[419615852,1775242239112,-500.0,0.00024399,2]
[419615854,1775242239122,-195.79384012,0.00024399,2]
[419615856,1775242239132,-500.0,0.00024399,2]
[419615858,1775242239141,-516.92524257,0.00024399,2]
[419615860,1775242239151,-500.0,0.00024399,2]
[419615862,1775242239161,-166488.44185667,0.000244,2]
[419615864,1775242239173,-4553.54716792,0.000244,2]
[419616265,1775242243832,-13359.0,0.000244,2]
[419616575,1775242247131,-300.0,0.000244,2]
[419616582,1775242247186,-30317.5760181,0.000244,2]
[419621841,1775242316111,1636.560483,0.0002744,120]
[419621842,1775242364888,500.0,0.00034743,120]
[419621843,1775242365122,500.0,0.00034743,120]
[419621844,1775242365486,500.0,0.00034743,120]
[419621845,1775242396654,405.53,9.001e-05,2]
[419621846,1775242487975,3655.60358276,0.00028532,120]
[419621847,1775242488129,4037.13484666,0.00029967,120]
[419621869,1775242881252,-1161.92977073,0.00012897,2]
[419621885,1775243432616,-5000.0,0.00012142,2]
[419621886,1775243432626,-597.0,0.00012264,2]
[419621887,1775243432635,-4930.72230481,0.00012265,2]
[419621888,1775243432671,-69.27769519,0.00012265,2]
[419621889,1775243432681,-300.0,0.00012763,2]
[419621891,1775243432691,-300.0,0.00012763,2]
[419621893,1775243432701,-300.0,0.00012763,2]
[419621895,1775243432711,-1000.0,0.00013699,2]
[419621897,1775243432721,-657.76801381,0.00014175,2]
[419621899,1775243432730,-1909.998488,0.00015,2]
[419621901,1775243432740,-896.515803,0.00015611,3]
[419621903,1775243432751,-345.01393958,0.00015611,3]
[419621905,1775243432761,-19.15434614,0.00018482,3]
[419622406,1775243441680,-442.58507751,0.00018482,3]
[419622407,1775243441692,-747.202766,0.00018482,3]
[419622448,1775243443129,-922.56069986,0.00018482,3]
[419622450,1775243443139,-213.98686178,0.00019918,9]
[419622452,1775243443151,-2195.06633835,0.00019918,9]
[419622454,1775243443161,-2087.773115,0.00021,2]
[419622456,1775243443172,-2512.52806272,0.00021353,22]
[419622458,1775243443182,-758.06564089,0.00021884,2]
[419622460,1775243443195,-1329.70747411,0.00021884,2]
[419622462,1775243443205,-158.0,0.00022,2]
[419622464,1775243443214,-158.0,0.00022,2]
[419622466,1775243443224,-234.0,0.00022,2]
[419622468,1775243443234,-64709.19158376,0.00022,2]
[419622573,1775243444263,-72652.40547345,0.00022,2]
[419622575,1775243444272,-2087.773115,0.00022768,2]
[419622577,1775243444282,-2893.55323606,0.00022789,36]
[419622579,1775243444291,-158.0,0.00023,2]
[419622581,1775243444301,-234.0,0.00023,2]
[419622584,1775243444311,-270.83333333,0.00023,2]
[419622586,1775243444320,-339.97130915,0.00023,2]
[419622588,1775243444330,-151.0,0.00023267,2]
[419622590,1775243444339,-366.68,0.00023427,7]
[419622592,1775243444349,-165.81,0.00023472,7]
[419622594,1775243444358,-2087.773115,0.00023652,2]
[419622596,1775243444368,-599.60298507,0.00023879,2]
[419622598,1775243444377,-201.93286097,0.00023879,2]
[419622600,1775243444387,-2398.4119403,0.00023879,2]
[419622602,1775243444396,-67289.51646758,0.00023925,2]
[419622604,1775243444406,-621.78829552,0.00023934,2]
[419622606,1775243444415,-644.79446246,0.00023989,2]
[419622619,1775243444535,-158.0,0.00024,2]
[419622621,1775243444544,-234.0,0.00024,2]
[419622623,1775243444554,-7054.85457137,0.00024,7]
[419622625,1775243444564,-476447.55553738,0.00024025,2]
[419622627,1775243444573,-200.0,0.00024043,2]
[419622629,1775243444583,-668.65185757,0.00024044,2]
[419622632,1775243444593,-262.23334801,0.00024052,2]
[419622634,1775243444602,-220.19484046,0.00024052,2]
[419622636,1775243444612,-1708.61524833,0.00024096,2]
[419622637,1775243444622,-1708.61524831,0.00024097,2]